bitfinex/quotes_ETHUSD_20250129
["timestamp","ask_amount","ask_price","bid_price","bid_amount"]
[1738139612620,0.92050457,3157.3,3156.8,3.1677]
[1738139612924,0.92050457,3157.3,3156.8,3.19937534]
[1738139613915,4.08782457,3157.3,3156.7,3.16778]
[1738139614095,4.08782457,3157.3,3156.7,3.9836164]
[1738139614827,4.08782457,3157.3,3156.7,7.1514064]
[1738139615226,3.33202457,3157.3,3156.9,0.7615]
[1738139616335,0.16470457,3157.3,3156.9,0.7615]
[1738139616543,0.64324648,3157.6,3157.2,3.16736]
[1738139616713,3.16699,3157.6,3157.0,3.19915434]
[1738139617720,3.16712,3157.5,3157.0,3.16748]
[1738139617898,3.16718,3157.4,3156.9,0.7615]
[1738139618102,3.16718,3157.4,3156.9,3.96081193]
[1738139618289,3.16718,3157.4,3156.9,4.24315264]
[1738139619128,3.16727,3157.3,3156.9,1.07551264]
[1738139619330,3.16727,3157.3,3156.9,0.7615]
[1738139619707,3.93847,3157.3,3156.8,5.38]
[1738139619908,3.16754,3157.1,3156.8,5.38]
[1738139620507,3.16762,3157.0,3156.8,5.38]
[1738139621312,3.16762,3157.0,3156.5,5.38]
[1738139621655,3.16762,3157.0,3156.5,8.54803]
[1738139622105,3.16783,3156.8,3156.4,0.7534]
[1738139623451,3.16788,3156.7,3156.4,0.7534]
[1738139623655,3.16783,3156.8,3156.2,5.41167926]
[1738139623908,3.1676,3157.0,3156.2,5.41167926]
[1738139623909,3.1676,3157.0,3156.4,0.61650792]
[1738139624090,3.16776,3156.9,3156.3,3.96249]
[1738139624293,3.16776,3156.9,3156.4,3.16815]
[1738139624977,6.3355,3156.9,3156.4,3.16815]
[1738139625489,3.16797,3156.6,3156.3,0.7943]
[1738139625876,3.16783,3156.8,3156.3,0.7943]
[1738139626073,3.16797,3156.6,3156.3,0.7943]
[1738139626290,3.16783,3156.8,3156.3,1.80973979]
[1738139627518,3.16783,3156.8,3156.3,4.97798979]
[1738139627895,3.16783,3156.8,3156.3,8.17791904]
[1738139628212,3.16783,3156.8,3156.3,4.97798979]
[1738139628412,3.16783,3156.8,3156.3,5.00966901]
[1738139628907,3.16768,3156.9,3156.3,5.00960901]
[1738139629270,3.16768,3156.9,3156.3,4.97792979]
[1738139629811,3.16768,3156.9,3156.4,3.16815]
[1738139631804,3.16761,3157.0,3156.3,1.80973979]
[1738139632010,3.16777,3156.8,3156.3,4.97797979]
[1738139632208,3.16777,3156.8,3156.3,5.00965903]
[1738139632717,3.16777,3156.8,3156.3,5.00965898]
[1738139633014,3.16777,3156.8,3156.3,4.97797979]
[1738139633486,3.16777,3156.8,3156.3,5.009659]
[1738139633684,3.16761,3157.0,3156.5,0.55]
[1738139634005,3.16733,3157.3,3156.8,0.8055]
[1738139634169,3.92224,3157.4,3156.8,0.8055]
[1738139634711,3.16741,3157.2,3156.8,0.8055]
[1738139634874,3.16745,3157.2,3156.4,3.97364]
[1738139635215,3.16762,3157.0,3156.4,3.97364]
[1738139635417,3.16762,3157.0,3156.4,4.91217171]
[1738139637022,3.16767,3156.9,3156.4,4.91217171]
[1738139637173,3.16762,3157.0,3156.4,4.91217171]
[1738139638318,3.16762,3157.0,3156.4,8.08028171]
[1738139638812,3.16762,3157.0,3156.4,4.91214171]
[1738139639017,3.93229,3156.8,3156.4,0.8055]
[1738139639226,0.7645,3156.8,3156.2,0.7512]
[1738139639394,3.16822,3156.4,3156.0,6.1312]
[1738139640721,3.16822,3156.4,3156.0,9.29976]
[1738139642321,3.99102,3156.4,3156.0,5.38]
[1738139642899,3.16822,3156.4,3156.0,5.38]
[1738139644141,3.99082,3156.6,3156.0,8.54856]
[1738139644449,0.8228,3156.6,3156.1,0.55]
[1738139644605,3.16781,3156.8,3156.3,3.92235]
[1738139644803,0.7628,3156.9,3156.4,3.19980913]
[1738139645436,0.16464753,3157.0,3156.6,3.16794]
[1738139645644,3.16747,3157.1,3156.6,3.83637812]
[1738139645809,3.93022,3157.2,3156.6,3.83637812]
[1738139646006,3.16742,3157.2,3156.7,3.71779]
[1738139646209,0.7628,3157.5,3157.0,3.16753]
[1738139646422,3.16686,3157.7,3157.1,3.92149]
[1738139646747,3.16686,3157.7,3157.1,3.95316051]
[1738139647059,3.16706,3157.5,3157.1,0.7541]
[1738139648863,3.16686,3157.7,3157.2,3.16733]
[1738139649461,3.16671,3157.9,3157.1,1.18110147]
[1738139649462,3.95341,3158.1,3157.4,3.1671]
[1738139649663,3.16657,3158.0,3157.5,3.19870731]
[1738139649885,3.16657,3158.0,3157.4,8.5471]
[1738139650091,3.16667,3157.9,3157.4,8.5471]
[1738139650224,0.95189374,3158.1,3157.4,9.773545]
[1738139650428,3.16656,3158.0,3157.5,3.16704]
[1738139651751,0.16499374,3158.1,3157.9,3.16665]
[1738139651951,3.17119,3158.4,3157.9,3.16665]
[1738139652155,3.17119,3158.4,3157.8,0.55]
[1738139652340,3.33123655,3158.3,3157.9,0.371677]
[1738139652546,0.16494655,3158.3,3157.9,0.371677]
[1738139652872,3.33121655,3158.3,3157.9,0.371677]
[1738139653028,3.33121655,3158.3,3157.8,0.55]
[1738139653368,3.33121655,3158.3,3157.8,3.71673]
[1738139653979,3.33121655,3158.3,3157.8,9.09673]
[1738139655407,0.16494655,3158.3,3157.8,9.09673]
[1738139655765,3.17119,3158.4,3157.8,9.09673]
[1738139655986,3.17119,3158.4,3157.8,10.39882]
[1738139656705,6.33742,3158.4,3157.8,10.39882]
[1738139656869,3.17119,3158.4,3157.8,10.39882]
[1738139657620,3.16627,3158.3,3157.8,7.23209]
[1738139658574,3.16641,3158.2,3157.8,7.23209]
[1738139661319,3.16651,3158.1,3157.8,5.38]
[1738139661533,3.16666,3157.9,3157.8,5.38]
[1738139662701,3.93516,3157.9,3157.8,5.38]
[1738139663136,3.16752,3157.1,3156.8,0.8122]
[1738139663431,3.16751,3157.1,3156.8,0.8122]
[1738139663620,6.33505,3157.1,3156.8,1.43142]
[1738139663818,3.16742,3157.2,3156.8,1.43142]
[1738139664593,3.1673,3157.3,3156.8,1.43142]
[1738139664931,3.16746,3157.1,3156.8,1.43142]
[1738139667446,3.16786,3156.7,3156.4,6.1649]
[1738139667739,0.806,3156.5,3155.8,0.7849]
[1738139667949,3.16865,3156.0,3155.8,0.7849]
[1738139668109,3.16866,3155.9,3155.6,5.38]
[1738139668459,3.16883,3155.8,3155.6,5.38]
[1738139668741,3.16897,3155.6,3155.3,5.38]
[1738139668985,3.16897,3155.6,3155.3,5.99935]
[1738139669496,3.16894,3155.7,3155.3,5.99935]
[1738139669783,3.16903,3155.6,3155.3,5.99935]
[1738139669992,3.16894,3155.7,3155.3,5.99935]
[1738139670699,3.16894,3155.7,3155.4,0.02780347]
[1738139671076,3.1685,3156.1,3155.4,3.83130872]
[1738139671265,3.16867,3155.9,3155.4,3.79961882]
[1738139672698,0.8062,3156.2,3155.5,0.58168749]
[1738139672998,3.16828,3156.3,3155.6,3.92389]
[1738139673155,3.16828,3156.3,3155.7,0.48503193]
[1738139673492,3.16836,3156.2,3155.8,0.02789134]
[1738139673995,3.16836,3156.2,3155.9,0.02789134]
[1738139674393,3.16836,3156.2,3155.7,3.62217688]
[1738139674695,3.16836,3156.2,3156.0,0.02789134]
[1738139674994,3.16836,3156.2,3155.8,0.02789134]
[1738139675163,3.16836,3156.2,3155.7,0.45334688]
[1738139675365,3.16856,3156.0,3155.9,0.02789134]
[1738139675574,3.16856,3156.0,3155.3,6.1956]
[1738139675896,6.33719,3156.0,3155.4,0.55]
[1738139676056,3.16868,3155.9,3155.4,0.55]
[1738139676257,3.16868,3155.9,3155.5,0.02789134]
[1738139676457,3.16848,3156.1,3155.6,0.37470313]
[1738139676985,3.16848,3156.1,3155.7,0.02777418]
[1738139677605,3.16841,3156.2,3155.7,0.02777418]
[1738139677606,3.16876,3155.8,3155.7,0.02777418]
[1738139678108,0.7608,3155.9,3155.3,5.38]
[1738139678109,3.16917,3155.4,3155.3,5.38]
[1738139678258,3.16955,3155.1,3154.9,5.38]
[1738139678659,3.16957,3155.0,3154.9,5.38]
[1738139678887,3.16957,3155.0,3154.6,0.8022]
[1738139679397,3.16957,3155.0,3154.5,5.38]
[1738139679901,3.16975,3154.9,3154.5,5.38]
[1738139680215,3.16978,3154.8,3154.5,5.38]
[1738139680604,3.16994,3154.7,3154.1,3.0]
[1738139680900,3.16994,3154.7,3154.1,5.38]
[1738139680901,3.17009,3154.5,3154.1,5.38]
[1738139681100,3.17004,3154.6,3154.1,9.11440617]
[1738139681252,3.17013,3154.5,3154.1,5.38]
[1738139681673,3.17037,3154.2,3154.1,5.38]
[1738139681915,3.17037,3154.2,3153.9,0.55]
[1738139683216,3.17037,3154.2,3154.0,0.02785061]
[1738139683712,3.17037,3154.2,3153.4,3.92135]
[1738139683880,3.17075,3153.9,3153.4,0.7502]
[1738139684302,3.1706,3154.0,3153.4,3.92137]
[1738139684533,3.1706,3154.0,3153.4,4.851507]
[1738139684718,3.17056,3154.1,3153.5,3.17101]
[1738139685304,3.17056,3154.1,3153.4,1.680337]
[1738139685305,3.94075,3154.0,3153.4,1.680337]
[1738139685648,3.17083,3153.8,3153.4,0.55]
[1738139686243,3.17093,3153.7,3153.2,5.38]
[1738139686548,3.17083,3153.8,3153.2,5.38]
[1738139686746,3.17094,3153.7,3153.2,5.38]
[1738139687403,3.17094,3153.7,3153.2,8.55137]
[1738139687845,3.17075,3153.9,3153.2,6.627298]
[1738139688008,3.17078,3153.8,3153.3,3.17127]
[1738139688437,3.17078,3153.8,3153.2,6.627298]
[1738139688902,3.17089,3153.7,3153.2,6.627298]
[1738139689117,3.17099,3153.6,3153.2,5.38]
[1738139689757,3.17106,3153.6,3153.2,5.38]
[1738139690111,3.17106,3153.6,3153.0,8.5515]
[1738139691012,3.17106,3153.6,3153.0,5.38]
[1738139691427,3.17126,3153.4,3153.0,5.38]
[1738139691672,3.97936,3153.4,3153.0,5.38]
[1738139691988,3.17131,3153.3,3153.0,5.38]
[1738139693296,3.17146,3153.2,3152.6,8.55197]
[1738139693965,3.17131,3153.3,3152.7,3.17188]
[1738139694166,3.17131,3153.3,3152.8,3.17176]
[1738139694494,3.17144,3153.2,3152.6,5.38]
[1738139694696,3.17158,3153.0,3152.9,0.02989697]
[1738139694880,3.17179,3152.8,3152.3,0.8078]
[1738139695054,0.783,3152.7,3152.0,5.38]
[1738139695253,3.17211,3152.5,3152.0,5.38]
[1738139695453,0.783,3152.7,3152.0,5.38]
[1738139695705,3.17154,3153.1,3152.4,3.97998]
[1738139695854,3.17154,3153.1,3152.5,3.17202]
[1738139696050,3.17154,3153.1,3152.4,3.97998]
[1738139696257,3.17132,3153.3,3152.6,3.17191]
[1738139696488,3.17139,3153.2,3152.7,3.17181]
[1738139697292,3.17123,3153.4,3152.8,3.17172]
[1738139697478,3.95412,3153.5,3152.8,3.17172]
[1738139697685,3.17128,3153.3,3152.8,3.17172]
[1738139697858,3.17138,3153.2,3152.6,3.72192]
[1738139698180,3.1715,3153.1,3152.6,3.72195]
[1738139700267,3.1715,3153.1,3152.5,5.38]
[1738139700473,6.34352,3152.9,3152.5,5.38]
[1738139700711,3.17183,3152.8,3152.5,5.38]
[1738139700894,3.17168,3152.9,3152.5,5.38]
[1738139701220,3.17179,3152.8,3152.5,5.38]
[1738139701987,3.94246,3153.0,3152.5,5.38]
[1738139702188,3.94246,3153.0,3152.5,8.55208]
[1738139702388,3.17153,3153.1,3152.6,0.0317183]
[1738139702607,3.1716,3153.0,3152.5,8.55208]
[1738139703312,3.17181,3152.8,3152.5,5.38]
[1738139704002,3.33625157,3153.2,3152.5,8.55205]
[1738139704208,3.33625157,3153.2,3152.7,3.17183]
[1738139704405,3.33625157,3153.2,3152.6,1.3203]
[1738139704593,3.33625157,3153.2,3152.6,4.49226]
[1738139704777,3.17148,3153.1,3152.6,4.49226]
[1738139704975,3.17148,3153.1,3152.6,6.0413144]
[1738139705617,3.17164,3153.0,3152.6,2.8693544]
[1738139705919,3.17164,3153.0,3152.5,8.55199]
[1738139706293,3.33629157,3153.2,3152.6,3.17193]
[1738139706494,3.17148,3153.1,3152.6,3.17193]
[1738139706733,3.17148,3153.1,3152.5,8.55199]
[1738139707237,3.17148,3153.1,3152.6,3.17196]
[1738139707449,3.33629157,3153.2,3152.6,4.344355]
[1738139707658,3.33629157,3153.2,3152.7,3.17182]
[1738139707828,3.17148,3153.1,3152.6,1.172395]
[1738139708016,3.17148,3153.1,3152.6,4.344365]
[1738139708218,3.33629157,3153.2,3152.6,4.344365]
[1738139708219,0.16485157,3153.2,3152.7,3.17187]
[1738139708448,3.33629157,3153.2,3152.7,4.4615005]
[1738139708618,3.17158,3153.1,3152.7,1.2896305]
[1738139709034,3.17158,3153.1,3152.8,0.03036056]
[1738139709341,3.17158,3153.0,3152.8,0.03036056]
[1738139709659,3.17158,3153.0,3152.5,8.55206]
[1738139709958,6.34322,3153.0,3152.5,6.63151]
[1738139710150,3.17158,3153.0,3152.5,6.63151]
[1738139710309,3.17168,3152.9,3152.5,6.63151]
[1738139710748,0.773,3152.9,3152.5,5.38]
[1738139710938,3.17189,3152.7,3152.5,5.38]
[1738139711735,3.17198,3152.6,3152.5,5.38]
[1738139713237,3.17226,3152.4,3151.8,6.174]
[1738139713439,3.17235,3152.3,3151.8,6.174]
[1738139713662,0.7617,3152.6,3152.1,3.17239]
[1738139713830,3.93345,3152.9,3152.3,0.794]
[1738139714252,3.93345,3152.9,3152.3,3.96627]
[1738139714437,3.17163,3153.0,3152.3,3.96627]
[1738139714773,3.33626157,3153.2,3152.7,0.8174]
[1738139714774,0.16485157,3153.2,3152.7,0.8174]
[1738139715076,0.16485157,3153.2,3152.8,6.34349]
[1738139715274,0.16485157,3153.2,3152.8,3.17171]
[1738139715444,6.34209,3153.6,3153.0,3.17157]
[1738139715650,0.16477254,3153.4,3153.0,3.17157]
[1738139716049,0.16477254,3153.4,3153.1,3.17145]
[1738139716245,0.16477254,3153.4,3153.2,3.96926]
[1738139716449,3.17072,3153.9,3153.3,3.17128]
[1738139716638,3.33555952,3153.8,3153.3,3.17128]
[1738139716829,3.33555952,3153.8,3153.2,3.96926]
[1738139717230,3.17098,3153.6,3153.0,3.1715]
[1738139717461,3.17098,3153.6,3153.1,0.55]
[1738139717651,6.34203,3153.6,3153.1,0.55]
[1738139718354,3.17098,3153.6,3153.1,0.55]
[1738139719706,3.17094,3153.7,3153.2,3.17134]
[1738139719864,3.17098,3153.6,3153.1,0.55]
[1738139720262,3.17098,3153.6,3153.1,3.72141]
[1738139720557,3.33558952,3153.8,3153.1,0.55]
[1738139720797,3.17096,3153.7,3153.1,0.55]
[1738139721099,3.17096,3153.7,3153.1,3.72147]
[1738139721630,3.17104,3153.6,3153.1,3.72147]
[1738139722558,3.17092,3153.7,3153.1,3.72147]
[1738139722759,3.17098,3153.6,3153.1,3.72147]
[1738139723257,3.17114,3153.5,3153.0,0.03171064]
[1738139723568,0.7826,3153.7,3152.8,5.38]
[1738139723900,3.17159,3153.0,3152.8,5.38]
[1738139724196,3.96649,3153.0,3152.9,0.03773816]
[1738139724401,3.96649,3153.0,3152.0,9.17938594]
[1738139724606,3.17209,3152.5,3152.0,9.67844509]
[1738139724762,3.17189,3152.7,3152.1,3.72243]
[1738139724965,3.17129,3153.3,3152.6,3.17196]
[1738139725161,3.17138,3153.2,3152.6,3.17196]
[1738139725432,3.17129,3153.3,3152.7,3.72184]
[1738139725630,3.17129,3153.3,3152.8,3.93996]
[1738139726894,3.17149,3153.1,3152.8,0.7682]
[1738139727425,3.17178,3152.8,3152.7,5.38]
[1738139727606,3.17153,3153.1,3152.7,5.38]
[1738139727811,3.92877,3153.3,3152.8,0.8195]
[1738139728011,3.17137,3153.3,3152.8,0.8195]
[1738139728214,3.17128,3153.3,3152.8,0.8195]
[1738139728544,3.17128,3153.3,3152.8,3.99122]
[1738139728712,3.17107,3153.5,3152.8,1.15456943]
[1738139728905,3.17128,3153.3,3152.8,3.99126]
[1738139729739,3.17128,3153.3,3152.8,0.8195]
[1738139730235,3.17128,3153.3,3152.8,3.99122]
[1738139730540,3.17093,3153.7,3153.1,3.17141]
[1738139730833,3.33559952,3153.8,3153.2,3.17136]
[1738139731041,6.50644952,3153.8,3153.3,0.8276]
[1738139731197,3.33559952,3153.8,3153.3,0.8276]
[1738139731399,3.1709,3153.7,3153.3,0.8276]
[1738139731598,3.33559952,3153.8,3153.3,0.8276]
[1738139731799,3.17099,3153.6,3153.3,0.8276]
[1738139732737,3.33559952,3153.8,3153.3,0.8276]
[1738139732944,3.17089,3153.7,3153.3,0.8276]
[1738139733649,0.16477952,3153.8,3153.5,3.72105]
[1738139733856,0.16477952,3153.8,3153.5,0.58170734]
[1738139734006,3.17045,3154.2,3153.7,3.17087]
[1738139734201,0.16548352,3154.1,3153.5,6.89205]
[1738139734446,3.33597352,3154.1,3153.5,7.73603621]
[1738139734652,0.16548352,3154.1,3153.8,0.55]
[1738139734848,0.16548352,3154.1,3153.9,3.92597]
[1738139735517,3.17,3154.6,3154.0,3.75227417]
[1738139735722,3.16983,3154.8,3154.3,3.17026]
[1738139736021,3.99903,3154.9,3154.4,0.7557]
[1738139736344,4.16447313,3154.9,3154.4,0.7557]
[1738139736555,3.16978,3154.8,3154.4,0.7557]
[1738139736801,3.16992,3154.7,3154.4,0.7557]
[1738139737076,3.58638631,3154.7,3154.2,0.55]
[1738139737376,0.41646631,3154.7,3154.0,5.38]
[1738139737580,3.17083,3153.8,3153.5,5.38]
[1738139737734,3.17089,3153.7,3153.3,0.7782]
[1738139737951,0.8304,3153.9,3153.1,5.38]
[1738139738133,3.17095,3153.7,3153.1,5.38]
[1738139738436,6.34191,3153.7,3153.1,5.38]
[1738139738830,6.34191,3153.7,3153.2,0.13839334]
[1738139739031,3.17095,3153.7,3153.2,3.30976334]
[1738139740176,3.99181,3154.1,3153.4,0.7629]
[1738139740358,4.390991,3154.1,3153.5,3.17103]
[1738139740568,3.17089,3153.7,3153.3,0.13763807]
[1738139740870,3.17089,3153.7,3153.2,3.93426]
[1738139741169,3.17089,3153.7,3153.4,0.13793703]
[1738139741472,3.17089,3153.7,3153.2,0.7629]
[1738139741648,3.17089,3153.7,3153.5,0.1379429]
[1738139741972,3.17089,3153.7,3153.2,3.93427]
[1738139742147,3.17089,3153.7,3153.6,0.13790186]
[1738139742473,3.17071,3153.9,3153.6,0.13790186]
[1738139742675,3.17071,3153.9,3153.2,0.7629]
[1738139742676,3.17087,3153.7,3153.2,0.7629]
[1738139742876,6.34145,3153.9,3153.7,0.13790186]
[1738139743171,7.0976431,3153.9,3153.3,3.17126]
[1738139743472,3.17092,3153.7,3153.2,3.93425]
[1738139743680,0.8288,3153.6,3153.4,0.13790186]
[1738139743982,3.17107,3153.5,3153.1,5.38]
[1738139744792,3.17118,3153.4,3153.1,5.38]
[1738139744958,3.17131,3153.3,3152.8,3.17173]
[1738139745157,3.17113,3153.5,3152.9,0.55]
[1738139745383,6.3419,3153.7,3153.1,3.17147]
[1738139746392,3.17094,3153.7,3153.1,3.17147]
[1738139746602,6.3419,3153.7,3153.1,3.17147]
[1738139746895,3.17094,3153.7,3153.1,0.55]
[1738139747192,3.17113,3153.5,3152.8,3.17173]
[1738139747391,3.17113,3153.5,3152.9,3.17166]
[1738139747594,3.17113,3153.5,3153.0,3.17155]
[1738139748512,3.17103,3153.6,3153.0,3.17155]
[1738139748807,3.1711,3153.5,3152.9,0.55]
[1738139748994,3.17128,3153.3,3152.8,3.17174]
[1738139749209,3.93518,3153.3,3152.8,3.17174]
[1738139749372,3.17146,3153.2,3152.7,3.7661]
[1738139749574,3.17164,3153.0,3152.6,5.38]
[1738139749819,3.882094,3153.2,3152.6,5.38]
[1738139749987,3.17153,3153.1,3152.6,5.38]
[1738139750411,3.17165,3153.0,3152.6,5.38]
[1738139750613,3.17148,3153.1,3152.3,3.17228]
[1738139750772,3.17178,3152.9,3152.3,3.17228]
[1738139751516,3.17178,3152.9,3152.4,3.17214]
[1738139751754,3.17177,3152.9,3152.3,0.55]
[1738139751921,3.17177,3152.9,3152.3,3.72223]
[1738139752074,3.17176,3152.9,3152.3,3.72223]
[1738139752718,3.17176,3152.9,3152.4,3.17215]
[1738139753109,3.17176,3152.9,3152.3,6.89443]
[1738139753318,3.17175,3152.9,3152.3,3.7222]
[1738139753820,3.17148,3153.1,3152.4,0.13413155]
[1738139753980,3.17148,3153.1,3152.5,3.17207]
[1738139754503,3.17172,3152.9,3152.3,3.7222]
[1738139754701,3.17172,3152.9,3152.6,0.13422518]
[1738139754903,3.17184,3152.8,3152.3,3.7222]
[1738139755125,3.98614,3152.8,3152.7,0.13422518]
[1738139755324,3.98614,3152.8,3152.3,9.1022]
[1738139755540,3.98614,3152.8,3152.7,0.1341491]
[1738139755998,0.8008,3153.0,3152.3,9.1022]
[1738139756330,3.17174,3152.9,3152.7,0.13460541]
[1738139756633,3.3372037,3152.9,3152.8,0.13460541]
[1738139756791,3.3372037,3152.9,3152.4,3.17218]
[1738139756992,0.1654637,3152.9,3152.8,0.13460541]
[1738139757192,3.96224,3153.4,3152.9,3.17165]
[1738139757426,3.96194,3153.7,3152.9,3.20336374]
[1738139757617,3.96194,3153.7,3153.1,3.17145]
[1738139757833,3.33647322,3153.6,3153.1,3.17145]
[1738139758136,3.33647322,3153.6,3153.2,0.13462882]
[1738139758319,3.17126,3153.4,3153.2,0.13462882]
[1738139758529,3.17128,3153.3,3153.2,0.13462882]
[1738139758699,3.17149,3153.1,3152.6,5.38]
[1738139759033,3.17159,3153.0,3152.6,5.38]
[1738139760441,3.94414,3152.8,3152.6,5.38]
[1738139761030,3.94414,3152.8,3151.8,15.08277]
[1738139761031,3.17226,3152.4,3151.9,5.38]
[1738139761347,3.17234,3152.3,3151.9,5.38]
[1738139762439,4.594686,3152.3,3151.9,5.38]
[1738139762735,3.17261,3152.0,3151.4,3.99472]
[1738139762939,3.1727,3151.9,3151.4,3.99472]
[1738139763123,3.1727,3151.9,3151.4,0.8216]
[1738139763334,3.1727,3151.9,3151.3,5.38]
[1738139763335,3.17287,3151.8,3151.3,5.38]
[1738139764745,3.17269,3151.9,3151.3,8.55323]
[1738139764940,3.17269,3151.9,3151.3,5.38]
[1738139765125,4.594666,3152.3,3151.4,3.20487921]
[1738139765328,3.96022,3152.3,3151.7,3.17283]
[1738139765835,0.7879,3152.3,3151.5,0.55]
[1738139766000,3.17265,3152.0,3151.4,3.17315]
[1738139766444,3.17269,3151.9,3151.4,3.17315]
[1738139766734,3.17269,3151.9,3151.3,6.1729]
[1738139766735,3.17269,3151.9,3151.3,9.34617]
[1738139766899,3.17269,3151.9,3151.3,5.38]
[1738139767100,0.7685,3151.7,3151.3,5.38]
[1738139767528,0.7685,3151.7,3151.3,8.55328]
[1738139767842,0.7685,3151.7,3151.3,5.38]
[1738139768001,0.7685,3151.7,3151.3,8.55328]
[1738139768848,0.7685,3151.7,3151.4,0.13048157]
[1738139770340,6.34529,3152.0,3151.4,3.30366157]
[1738139770519,0.7666,3151.9,3151.4,0.13048157]
[1738139770706,3.93934,3151.9,3151.4,0.13048157]
[1738139771009,0.7666,3151.9,3151.5,3.17308]
[1738139771318,0.7666,3151.9,3151.5,0.13061006]
[1738139771640,0.7666,3151.9,3151.3,8.55326]
[1738139771845,0.7666,3151.9,3151.6,0.1311998]
[1738139772048,1.160526,3151.9,3151.3,8.55326]
[1738139772246,3.1728,3151.8,3151.7,0.1311998]
[1738139772413,1.160526,3151.9,3150.9,8.55364]
[1738139772606,1.160526,3151.9,3151.7,0.13115892]
[1738139772805,3.17279,3151.8,3151.1,3.1734]
[1738139773225,3.17279,3151.8,3151.3,3.17328]
[1738139773817,0.7666,3151.9,3151.3,3.17328]
[1738139774027,0.7666,3151.9,3151.0,3.0]
[1738139774028,0.826,3152.2,3151.6,3.17294]
[1738139774232,3.17251,3152.1,3151.6,3.17294]
[1738139775131,3.889591,3152.1,3151.4,0.8331]
[1738139775335,3.17273,3151.9,3151.3,3.17323]
[1738139775547,3.17273,3151.9,3151.3,6.34645]
[1738139775707,3.17273,3151.9,3151.3,8.55322]
[1738139776464,3.17273,3151.9,3151.3,5.38]
[1738139776609,3.17302,3151.6,3151.3,5.38]
[1738139776814,0.7632,3151.5,3151.3,5.38]
[1738139778212,3.17319,3151.4,3151.3,5.38]
[1738139779057,0.92842669,3151.5,3151.3,5.38]
[1738139780011,3.17319,3151.4,3151.3,5.38]
[1738139780212,4.10154669,3151.5,3151.3,5.38]
[1738139780851,3.33834669,3151.5,3151.3,5.38]
[1738139781217,0.16522669,3151.5,3151.3,5.38]
[1738139781621,0.16522669,3151.5,3151.3,8.55328]
[1738139781860,0.16522669,3151.5,3151.3,3.17328]
[1738139782061,0.16522669,3151.5,3151.3,3.17323]
[1738139782281,0.16522669,3151.5,3151.4,3.17319]
[1738139782584,3.96519,3152.3,3151.5,1.3508]
[1738139782880,0.16520387,3151.9,3151.8,3.17277]
[1738139783886,0.16520387,3151.9,3151.8,3.30440206]
[1738139785711,3.17211,3152.5,3151.9,3.17261]
[1738139785915,0.16527086,3152.3,3151.9,3.17261]
[1738139786058,0.16527086,3152.3,3152.0,3.30398178]
[1738139786566,0.16527086,3152.3,3152.0,0.13142178]
[1738139787092,3.33756086,3152.3,3152.1,0.13142178]
[1738139787265,3.33756086,3152.3,3151.8,4.52819]
[1738139787466,3.33756086,3152.3,3152.2,0.13142178]
[1738139787710,3.98852795,3152.3,3151.8,3.72269]
[1738139787877,3.33756086,3152.3,3152.2,0.13142178]
[1738139788063,3.33756086,3152.3,3151.8,3.72269]
[1738139788265,3.33756086,3152.3,3152.2,0.13127577]
[1738139788465,3.33756086,3152.3,3151.8,3.72269]
[1738139788665,3.33756086,3152.3,3152.2,0.13127577]
[1738139788901,3.33756086,3152.3,3151.8,3.72269]
[1738139789061,3.33756086,3152.3,3152.2,0.13127577]
[1738139789268,3.33756086,3152.3,3151.8,3.72269]
[1738139789565,3.33756086,3152.3,3152.2,0.13127577]
[1738139789772,3.17263,3152.0,3151.6,3.8128]
[1738139789972,3.17285,3151.8,3151.5,5.38]
[1738139790198,3.17285,3151.8,3151.2,9.31153]
[1738139790396,6.34573,3151.8,3151.2,9.31153]
[1738139790666,3.17285,3151.8,3151.2,9.31153]
[1738139790902,3.16450191,3151.7,3151.2,9.31153]
[1738139791105,3.16450191,3151.7,3151.3,0.23759631]
[1738139791267,3.17285,3151.8,3151.3,0.23759631]
[1738139791771,3.94423,3151.7,3151.3,0.23759631]
[1738139791993,3.17272,3151.9,3151.3,3.41087631]
[1738139792197,3.17252,3152.1,3151.6,3.17298]
[1738139792472,0.16527086,3152.3,3152.0,3.17251]
[1738139792668,0.16527086,3152.3,3152.2,4.50088]
[1738139792984,3.17107,3153.5,3152.7,3.9503]
[1738139793185,0.16532157,3153.1,3153.0,3.72156]
[1738139793384,0.8317,3153.6,3153.1,3.17142]
[1738139793587,0.16530211,3153.6,3153.2,0.55]
[1738139793799,0.16530211,3153.6,3153.4,0.55]
[1738139794520,0.16530211,3153.6,3153.3,0.7823]
[1738139794692,0.16530211,3153.6,3153.1,6.34442]
[1738139794693,0.16530211,3153.6,3153.1,3.17142]
[1738139795424,0.7963,3153.5,3152.2,0.7664]
[1738139795626,3.17192,3152.7,3151.8,12.08276]
[1738139795924,3.17203,3152.6,3152.0,3.17252]
[1738139796489,3.17203,3152.6,3152.0,3.55]
[1738139796824,3.17203,3152.6,3152.0,6.72254]
[1738139797317,3.17219,3152.4,3152.0,3.55]
[1738139797501,3.17203,3152.6,3152.0,3.72257]
[1738139797818,3.17203,3152.6,3152.0,0.88694232]
[1738139798023,3.17203,3152.6,3152.0,4.05952232]
[1738139798189,3.17203,3152.6,3152.0,3.72258]
[1738139798518,3.17212,3152.5,3151.9,0.55]
[1738139798821,3.17219,3152.4,3151.9,0.55]
[1738139799120,3.17212,3152.5,3152.0,0.11685678]
[1738139799321,3.1722,3152.4,3152.0,0.11685678]
[1738139799722,3.17244,3152.2,3152.0,0.11685678]